bitfinex-derivatives/quotes_ETHF0:USTF0_20250403
["timestamp","ask_amount","ask_price","bid_price","bid_amount"]
[1743670129159,2.56314,1820.9,1820.8,46.83357224]
[1743670129362,2.56314,1820.9,1820.8,46.13467224]
[1743670129663,2.56314,1820.9,1820.8,45.4262]
[1743670134971,1.09844,1820.9,1820.8,45.4262]
[1743670135167,1.10664233,1821.0,1820.9,1.09844]
[1743670135471,1.10664233,1821.0,1820.9,3.25614]
[1743670135671,1.10664233,1821.0,1820.9,2.1577]
[1743670138867,0.00822233,1821.0,1820.9,2.1577]
[1743670139075,0.00822233,1821.0,1820.9,3.25614]
[1743670139269,0.00822233,1821.0,1820.9,5.75614]
[1743670139663,7.37924,1821.5,1821.2,1.09819]
[1743670139664,1.09823,1821.3,1821.2,1.09819]
[1743670139870,1.09823,1821.3,1821.2,3.2078]
[1743670140268,1.09823,1821.3,1821.2,5.3858]
[1743670140474,1.09823,1821.3,1821.2,6.48406]
[1743670140673,1.09805,1821.6,1821.5,1.09802]
[1743670140867,4.73499,1821.7,1821.6,1.09797]
[1743670141173,4.74321233,1821.7,1821.6,1.09797]
[1743670141574,4.74321233,1821.7,1821.6,2.52007]
[1743670141879,3.64522233,1821.7,1821.6,5.72787]
[1743670142081,0.00822233,1821.7,1821.6,5.72787]
[1743670142480,0.00822233,1821.7,1821.6,8.22787]
[1743670142880,0.00822233,1821.7,1821.6,49.73461028]
[1743670143873,1.09769,1822.2,1822.1,1.0977]
[1743670144076,4.73369,1822.2,1822.1,1.0977]
[1743670144583,4.73369,1822.2,1822.1,2.5206]
[1743670145176,4.73369,1822.2,1822.1,43.3206]
[1743670145877,4.73369,1822.2,1822.1,42.2229]
[1743670146076,6.25319,1822.2,1822.1,42.2229]
[1743670148383,6.25319,1822.2,1822.1,40.8]
[1743670148576,6.98159,1822.2,1822.1,40.8]
[1743670149578,6.98159,1822.2,1822.1,41.89772]
[1743670150780,1.09772,1822.1,1822.0,0.00822233]
[1743670151080,3.25672,1822.1,1822.0,0.00822233]
[1743670151386,5.75672,1822.1,1822.0,0.00822233]
[1743670153284,1.09796,1821.7,1821.6,1.4086]
[1743670153585,1.09802,1821.6,1821.5,4.30587]
[1743670153889,1.09802,1821.6,1821.5,40.8]
[1743670153890,2.50692,1821.6,1821.5,40.8]
[1743670154089,3.21772,1821.6,1821.5,40.8]
[1743670154790,1.09808,1821.5,1821.4,0.00822233]
[1743670154982,2.52768,1821.5,1821.4,0.00822233]
[1743670155293,2.52768,1821.5,1821.4,40.80822233]
[1743670157185,5.02768,1821.5,1821.4,40.80822233]
[1743670162798,6.16368,1821.5,1821.4,40.80822233]
[1743670164292,6.16368,1821.5,1821.4,42.29422233]
[1743670164698,6.16368,1821.5,1821.4,40.80822233]
[1743670167496,4.73408,1821.5,1821.4,40.80822233]
[1743670167698,4.73408,1821.5,1821.4,41.90636233]
[1743670167902,4.73408,1821.5,1821.4,41.51642233]
[1743670168411,4.73408,1821.5,1821.4,43.00132233]
[1743670170507,4.73408,1821.5,1821.4,44.09946233]
[1743670171001,4.73408,1821.5,1821.4,43.00132233]
[1743670172515,4.73408,1821.5,1821.4,44.09946233]
[1743670174320,2.7449,1821.7,1821.5,1.09805]
[1743670174616,1.09796,1821.7,1821.6,1.3848]
[1743670175310,4.73296,1821.7,1821.6,1.3848]
[1743670177114,5.9283524,1822.5,1821.6,7.0926]
[1743670177414,1.09784,1821.9,1821.8,4.30565]
[1743670177722,1.09784,1821.9,1821.8,6.55975]
[1743670177916,4.73284,1821.9,1821.8,6.55975]
[1743670179615,4.73284,1821.9,1821.8,5.4619]
[1743670179822,4.73284,1821.9,1821.8,6.5598]
[1743670181115,4.73284,1821.9,1821.8,4.7247]
[1743670183416,3.635,1821.9,1821.8,5.8226]
[1743670183622,4.73284,1821.9,1821.8,5.8226]
[1743670183820,1.09784,1821.9,1821.8,5.8226]
[1743670184123,4.73184,1822.0,1821.9,1.09778]
[1743670184314,4.73184,1822.0,1821.9,1.86218]
[1743670184516,4.73184,1822.0,1821.9,0.7644]
[1743670184816,1.09784,1821.9,1821.8,4.3057]
[1743670187321,1.7931,1822.2,1822.1,1.09772]
[1743670187521,5.4271,1822.2,1822.1,1.09772]
[1743670188619,1.0977,1822.2,1822.1,1.09772]
[1743670188812,4.73984233,1822.3,1822.2,1.09766]
[1743670189223,0.00822233,1822.3,1822.2,1.09766]
[1743670189723,0.00822233,1822.3,1822.2,4.30546]
[1743670190116,0.00822233,1822.3,1822.2,5.01257758]
[1743670190316,0.00822233,1822.3,1822.2,7.51257758]
[1743670191120,0.00822233,1822.3,1822.2,5.01257758]
[1743670191421,0.00822233,1822.3,1822.2,45.81257758]
[1743670195825,0.00822233,1822.3,1822.2,45.10546]
[1743670197521,0.00822233,1822.3,1822.2,45.81167081]
[1743670198118,2.15462233,1822.3,1822.2,45.81167081]
[1743670198720,2.15462233,1822.3,1822.2,45.10546]
[1743670199125,3.25222233,1822.3,1822.2,45.10546]
[1743670199328,1.09772,1822.1,1822.0,3.2078]
[1743670200024,3.27302,1822.1,1822.0,44.0078]
[1743670201424,5.77302,1822.1,1822.0,40.8]
[1743670201727,5.77302,1822.1,1821.4,55.35722233]
[1743670201728,1.09808,1821.5,1821.4,4.74012233]
[1743670202121,1.09808,1821.5,1821.4,5.44733835]
[1743670202322,2.52118,1821.5,1821.4,5.44733835]
[1743670202524,2.52118,1821.5,1821.4,3.92323835]
[1743670202832,2.52118,1821.5,1821.4,44.72323835]
[1743670203024,2.52118,1821.5,1821.4,44.01602233]
[1743670203925,2.52118,1821.5,1821.4,40.80822233]
[1743670204827,5.02118,1821.5,1821.4,40.8]
[1743670205031,2.74536,1821.4,1820.7,3.2078]
[1743670205231,1.09856,1820.8,1820.7,3.2078]
[1743670205430,2.74581,1821.1,1820.7,3.2078]
[1743670205431,4.73048,1820.9,1820.7,4.30635]
[1743670205627,3.632,1820.9,1820.7,3.2078]
[1743670205929,2.5826,1820.8,1820.7,3.2078]
[1743670206124,2.5826,1820.8,1820.7,44.0078]
[1743670210126,5.42238,1820.9,1820.8,1.0985]
[1743670210333,5.42238,1820.9,1820.8,2.4885]
[1743670210529,1.47182233,1821.0,1820.9,1.09844]
[1743670210724,0.00822233,1821.0,1820.9,5.69624]
[1743670210928,0.00822233,1821.0,1820.9,8.89494]
[1743670211128,2.56172,1821.5,1821.4,1.09814]
[1743670211336,6.19472,1821.5,1821.4,41.89814]
[1743670211836,5.0966,1821.5,1821.4,41.89814]
[1743670213630,6.19468,1821.5,1821.4,41.89814]
[1743670214433,0.00822233,1821.6,1821.5,1.09808]
[1743670214638,0.00822233,1821.6,1821.5,4.30588]
[1743670214833,0.00822233,1821.6,1821.5,5.68378]
[1743670215333,5.0792,1822.0,1821.9,1.09784]
[1743670215540,1.5251,1822.0,1821.9,4.30564]
[1743670215836,3.633,1822.1,1822.0,1.09778]
[1743670216038,3.633,1822.1,1822.0,2.49108]
[1743670216239,1.5251,1822.2,1822.1,1.09772]
[1743670216533,1.5251,1822.2,1822.1,4.30552]
[1743670216942,0.00822233,1822.3,1822.2,1.09766]
[1743670217138,0.00822233,1822.3,1822.2,2.49096]
[1743670217841,1.53332233,1822.3,1822.2,2.49096]
[1743670218234,1.53332233,1822.3,1822.1,4.30547]
[1743670218435,1.09766,1822.2,1822.1,4.30547]
[1743670218739,1.09766,1822.2,1822.1,3.2078]
[1743670218933,1.09766,1822.2,1822.1,4.30552]
[1743670219540,2.63096233,1822.3,1822.2,1.09766]
[1743670221236,1.09766,1822.2,1822.1,4.30548]
[1743670221439,2.50256,1822.2,1822.1,4.30548]
[1743670223338,2.50256,1822.2,1822.1,3.2078]
[1743670223543,1.09772,1822.1,1822.0,0.00822233]
[1743670223735,2.74448,1822.0,1821.6,1.09801]
[1743670223932,2.0971,1821.9,1821.6,1.09801]
[1743670224138,1.09803,1821.7,1821.6,1.09801]
[1743670224639,3.632,1821.8,1821.7,1.09796]
[1743670224842,3.24226,1821.9,1821.8,1.0979]
[1743670226835,1.0979,1821.8,1821.7,2.52854]
[1743670227038,1.09796,1821.7,1821.6,4.30577]
[1743670228741,1.4522,1821.8,1821.7,1.09796]
[1743670228944,1.4522,1821.8,1821.7,2.58826]
[1743670229143,2.5501,1821.8,1821.7,2.58826]
[1743670229449,1.09796,1821.7,1821.6,3.2078]
[1743670229649,2.58316,1821.7,1821.6,3.2078]
[1743670230450,1.4852,1821.7,1821.6,4.30577]
[1743670231250,1.09793,1821.8,1821.7,1.09796]
[1743670231444,1.09793,1821.8,1821.7,2.60176]
[1743670231850,2.61043,1821.8,1821.7,2.60176]
[1743670232949,1.5125,1821.8,1821.7,2.60176]
[1743670233155,1.09772,1822.2,1822.1,1.09767]
[1743670233357,2.62322,1822.2,1822.1,1.09767]
[1743670233859,1.5255,1822.2,1822.1,41.89767]
[1743670234554,2.62316,1822.2,1822.1,40.8]
[1743670235246,2.62316,1822.2,1822.1,41.89772]
[1743670236658,2.62316,1822.2,1822.1,40.8]
[1743670238659,2.62316,1822.2,1822.1,41.89772]
[1743670240056,2.62316,1822.2,1822.1,40.8]
[1743670240260,2.7443,1822.1,1821.8,3.2078]
[1743670240557,5.4293,1822.0,1821.9,1.09784]
[1743670240758,6.81248,1822.0,1821.9,45.10564]
[1743670240952,6.81248,1822.0,1821.9,41.89784]
[1743670241555,5.7147,1822.0,1821.9,45.10564]
[1743670242154,2.75227233,1822.3,1822.1,1.09766]
[1743670242453,1.4698,1822.2,1822.1,4.30546]
[1743670242649,1.4698,1822.2,1822.1,5.80646]
[1743670243053,1.4698,1822.2,1822.1,6.51293712]
[1743670243453,2.56746,1822.2,1822.1,2.20747712]
[1743670243656,1.09778,1822.0,1821.9,40.8]
[1743670243860,4.72878,1822.0,1821.9,40.8]
[1743670244461,6.92848,1822.0,1821.9,40.8]
[1743670244854,3.29748,1822.0,1821.9,41.89784]
[1743670245060,6.92848,1822.0,1821.9,41.89784]
[1743670245258,6.92848,1822.0,1821.9,43.39884]
[1743670246956,1.09769,1822.2,1822.1,1.09766]
[1743670247161,4.72869,1822.2,1822.1,1.09766]
[1743670247360,6.15779,1822.2,1822.1,1.09766]
[1743670247759,6.15779,1822.2,1822.1,1.09772]
[1743670248153,1.09778,1822.0,1821.9,40.8]
[1743670248357,1.09778,1822.0,1821.9,41.50730174]
[1743670248555,1.09778,1822.0,1821.9,42.60514174]
[1743670248863,1.09778,1822.0,1821.9,41.50730174]
[1743670249361,1.79238,1822.0,1821.9,41.50730174]
[1743670249762,1.79238,1822.0,1821.9,42.60514174]
[1743670250361,1.79238,1822.0,1821.9,41.50730174]
[1743670250754,1.79238,1822.0,1821.9,40.8]
[1743670250954,1.79238,1822.0,1821.9,41.89784]
[1743670251155,1.5245,1822.1,1822.0,1.09778]
[1743670251352,2.62228,1822.1,1822.0,1.09778]
[1743670251558,2.62228,1822.1,1822.0,2.60278]
[1743670251760,2.62228,1822.1,1822.0,3.31100141]
[1743670253361,1.5245,1822.1,1822.0,3.31100141]
[1743670253559,2.62222,1822.1,1822.0,3.31100141]
[1743670254168,4.72871,1822.2,1822.1,1.09772]
[1743670254365,6.13781,1822.2,1822.1,2.52142]
[1743670254565,6.13781,1822.2,1822.1,3.22964141]
[1743670255065,2.50681,1822.2,1822.1,3.22964141]
[1743670255267,6.13781,1822.2,1822.1,3.22964141]
[1743670255662,6.13781,1822.2,1822.1,0.70822141]
[1743670255856,6.89681,1822.2,1822.1,0.70822141]
[1743670256461,1.09772,1822.1,1822.0,1.09778]
[1743670256663,1.09772,1822.1,1822.0,2.52148]
[1743670256857,2.50682,1822.1,1822.0,3.23001915]
[1743670257264,2.50682,1822.1,1822.0,0.70853915]
[1743670258075,1.09778,1822.0,1821.9,41.89783]
[1743670258264,2.49838,1822.0,1821.9,42.60660623]
[1743670258572,2.49838,1822.0,1821.9,41.50877623]
[1743670258771,2.49838,1822.0,1821.9,42.60661623]
[1743670260360,6.12938,1822.0,1821.9,44.09791623]
[1743670260765,6.12938,1822.0,1821.9,41.50877623]
[1743670261670,6.12938,1822.0,1821.9,40.8]
[1743670263163,1.09796,1821.7,1821.6,3.2078]
[1743670263368,1.09802,1821.6,1821.5,0.00822233]
[1743670263570,5.75742,1821.6,1821.5,0.00822233]
[1743670263778,8.25742,1821.6,1821.5,40.80822233]
[1743670266277,1.09832,1821.1,1821.0,3.2078]
[1743670266580,4.72932,1821.1,1821.0,3.2078]
[1743670266778,4.72932,1821.1,1820.7,2.58291]
[1743670266779,1.0985,1820.8,1820.7,1.4844]
[1743670267079,1.0985,1820.8,1820.7,3.12808502]
[1743670267273,1.0985,1820.8,1820.7,44.88755]
[1743670267470,1.0985,1820.8,1820.7,45.59127243]
[1743670268372,0.00822233,1820.9,1820.8,1.0985]
[1743670268579,0.00822233,1820.9,1820.8,8.3109]
[1743670268769,0.00822233,1820.9,1820.8,9.55871854]
[1743670269179,0.00822233,1820.9,1820.8,47.31462243]
[1743670271491,1.10666233,1820.9,1820.8,47.31462243]
[1743670271791,0.00822233,1820.9,1820.8,47.31462243]
[1743670278197,0.00822233,1820.9,1820.8,49.81462243]
[1743670278394,0.00822233,1820.9,1820.8,55.59273907]
[1743670278593,4.73024,1821.3,1821.2,1.09826]
[1743670279298,4.73024,1821.3,1821.2,2.47596]
[1743670279599,6.12224,1821.3,1821.2,43.27596]
[1743670281098,6.12224,1821.3,1821.2,40.8]
[1743670289702,1.0985,1820.8,1820.7,3.2078]
[1743670290402,2.6156,1820.8,1820.7,4.30636]
[1743670290605,2.6156,1820.8,1820.7,47.24606]
[1743670291003,2.6156,1820.8,1820.7,47.95081883]
[1743670291811,2.6156,1820.8,1820.7,46.85225883]
[1743670292201,2.6156,1820.8,1820.7,47.21541883]
[1743670294609,2.6156,1820.8,1820.7,46.11685883]
[1743670294806,2.6156,1820.8,1820.7,47.21541883]
[1743670295208,2.6156,1820.8,1820.7,46.11685883]
[1743670296112,2.6156,1820.8,1820.7,45.81111883]
[1743670296710,2.6156,1820.8,1820.7,44.71255883]
[1743670298510,2.6156,1820.8,1820.7,41.50475883]
[1743670299006,2.6156,1820.8,1820.7,42.60331883]
[1743670299207,2.6156,1820.8,1820.7,45.81111883]
[1743670302315,2.6156,1820.8,1820.7,44.71255883]
[1743670302507,2.6156,1820.8,1820.7,3.91255883]
[1743670302706,2.6156,1820.8,1820.7,0.70475883]
[1743670303111,2.6156,1820.8,1820.7,41.50475883]
[1743670303615,2.6156,1820.8,1820.7,40.8]
[1743670307211,5.1156,1820.8,1820.7,40.8]
[1743670307410,1.09856,1820.7,1820.6,0.00822233]
[1743670307717,5.75646,1820.7,1820.6,0.00822233]
[1743670307919,8.25646,1820.7,1820.6,0.00822233]
[1743670312316,9.38846,1820.7,1820.6,0.00822233]
[1743670313021,6.18066,1820.7,1820.6,0.00822233]
[1743670313222,4.73056,1820.7,1820.6,0.71022233]
[1743670313522,4.73056,1820.7,1820.6,2.16592233]
[1743670313715,4.73056,1820.7,1820.6,42.96592233]
[1743670316018,4.73056,1820.7,1820.6,42.26392233]
[1743670316725,4.73056,1820.7,1820.6,42.97532233]
[1743670317116,1.09856,1820.7,1820.6,44.07394233]
[1743670317617,1.09856,1820.7,1820.6,42.97532233]
[1743670318422,2.48586,1820.7,1820.6,42.97532233]
[1743670320429,2.48586,1820.7,1820.6,0.00822233]
[1743670321122,2.48586,1820.7,1820.6,1.52772233]
[1743670321324,1.5082,1820.9,1820.6,2.62634233]
[1743670321519,5.96142233,1821.4,1820.9,2.74611]
[1743670321726,1.09836,1821.1,1821.0,4.30612]
[1743670322023,1.09836,1821.1,1821.0,6.52939239]
[1743670322326,1.4108,1821.2,1821.0,5.43107239]
[1743670322531,1.09831,1821.2,1821.1,2.61782]
[1743670322719,5.96140233,1821.4,1821.3,1.0982]
[1743670322720,0.00822233,1821.4,1821.3,1.0982]
[1743670323426,1.10636233,1821.4,1821.3,3.3209]
[1743670323630,1.10636233,1821.4,1821.3,43.0227]
[1743670323931,2.51716233,1821.4,1821.3,43.0227]
[1743670324230,2.51716233,1821.4,1821.3,44.1209]
[1743670324425,1.10636233,1821.4,1821.3,44.1209]
[1743670326625,1.10636233,1821.4,1821.3,43.0227]
[1743670326837,2.48646233,1821.4,1821.3,40.8]
[1743670327027,1.09832,1821.1,1821.0,4.665]
[1743670327224,1.09832,1821.1,1821.0,3.2078]
[1743670327420,1.09832,1821.1,1821.0,44.0078]
[1743670327624,1.09832,1821.1,1821.0,45.80800769]
[1743670329231,3.631,1821.2,1821.1,1.09832]
[1743670329736,1.09824,1821.3,1821.2,1.09826]
[1743670329925,1.09824,1821.3,1821.2,1.79456]
[1743670330130,1.09824,1821.3,1821.2,45.80236]
[1743670330539,2.55254,1821.3,1821.2,44.0078]
[1743670331037,2.55254,1821.3,1821.2,40.8]
[1743670331227,3.28434,1821.3,1821.2,40.8]
[1743670336634,8.99214,1821.3,1821.2,40.8]
[1743670338942,6.91434,1821.3,1821.2,40.8]
[1743670340453,1.09844,1820.9,1820.8,3.9481]
[1743670340944,1.0985,1820.8,1820.7,2.1367]
[1743670341140,1.09856,1820.7,1820.6,0.00822233]
[1743670341344,6.93906,1820.7,1820.6,0.00822233]
[1743670341646,6.93906,1820.7,1820.6,40.80822233]
[1743670341647,1.09856,1820.7,1820.6,40.80822233]
[1743670341842,1.09856,1820.7,1820.6,44.01602233]
[1743670342043,1.09856,1820.7,1820.6,45.80331233]
[1743670342545,1.09856,1820.7,1820.6,46.50749881]
[1743670342747,1.09854,1820.8,1820.7,1.09852]
[1743670342939,1.09854,1820.8,1820.7,3.29902]
[1743670344648,1.09854,1820.8,1820.7,4.0034262]
[1743670345246,1.09854,1820.8,1820.7,2.9049062]
[1743670345446,1.09854,1820.8,1820.7,2.1416062]
[1743670345751,2.52024,1820.8,1820.7,2.1416062]
[1743670346440,3.25244,1820.8,1820.7,2.1416062]
[1743670347143,3.25244,1820.8,1820.7,0.7044062]
[1743670348149,2.52024,1820.8,1820.7,1.8029662]
[1743670348341,1.09854,1820.8,1820.7,3.2986662]
[1743670351551,2.58234,1820.8,1820.7,0.7044062]
[1743670352651,1.09856,1820.7,1820.6,0.00822233]
[1743670352950,7.25766,1820.7,1820.6,2.33e-06]
[1743670353147,1.0988,1820.3,1820.2,3.2078]
[1743670353338,4.7298,1820.3,1820.2,3.2078]
[1743670353543,1.09898,1820.0,1819.9,1.09904]
[1743670353744,1.09898,1820.0,1819.9,42.2994]
[1743670354257,4.72998,1820.0,1819.9,40.8]
[1743670354749,4.72998,1820.0,1819.9,42.1878]
[1743670354940,1.09898,1820.0,1819.9,43.28684]
[1743670355552,1.09898,1820.0,1819.9,42.1878]
[1743670355751,1.09898,1820.0,1819.9,40.8]
[1743670356452,1.436,1820.0,1819.9,40.8]
[1743670356657,0.00822233,1820.1,1820.0,1.09898]
[1743670356860,1.0983,1821.2,1821.1,1.0983]
[1743670357156,1.09835,1821.1,1820.9,1.0984]
[1743670357356,1.09835,1821.1,1821.0,40.8]
[1743670357357,1.436,1821.1,1821.0,40.8]
[1743670357548,2.53432,1821.1,1821.0,40.8]
[1743670357953,6.19932,1821.1,1821.0,40.8]
[1743670359051,6.19732,1821.1,1821.0,40.8]
[1743670359654,6.19732,1821.1,1821.0,42.2917]
[1743670360054,6.19732,1821.1,1821.0,43.39008]
[1743670362163,6.19732,1821.1,1821.0,40.8]
[1743670362363,1.09838,1821.0,1820.9,0.00822233]
[1743670362563,2.58938,1821.0,1820.9,0.00822233]
[1743670362763,3.32928,1821.0,1820.9,0.00822233]
[1743670362974,3.32928,1821.0,1820.9,40.80822233]
[1743670363357,3.32928,1821.0,1820.9,41.90666233]
[1743670364064,3.32928,1821.0,1820.9,40.80822233]
[1743670366164,3.32928,1821.0,1820.9,41.90666233]
[1743670366362,3.32928,1821.0,1820.9,40.80822233]
[1743670366567,1.09837,1821.1,1821.0,1.09833]
[1743670366764,4.74937,1821.1,1821.0,2.52893]
[1743670367661,6.19247,1821.1,1821.0,1.4306]
[1743670367855,1.09838,1821.0,1820.9,40.80822233]
[1743670368059,2.54148,1821.0,1820.9,40.80822233]
[1743670369765,3.28868,1821.0,1820.9,40.80822233]
[1743670370265,3.99088,1821.0,1820.9,40.80822233]
[1743670372174,3.28868,1821.0,1820.9,41.90666233]
[1743670374570,3.28868,1821.0,1820.9,43.30446233]
[1743670375964,3.646,1821.1,1820.9,43.30446233]
[1743670376268,0.00822233,1821.2,1821.1,1.09832]
[1743670376674,0.00822233,1821.2,1821.1,2.60092]
[1743670376876,0.00822233,1821.2,1821.1,3.3032924]
[1743670378176,1.10648233,1821.2,1821.1,3.3032924]
[1743670378375,1.10648233,1821.2,1821.1,2.60092]
[1743670378677,1.09838,1821.0,1820.9,43.40921233]
[1743670380375,1.09836,1821.1,1821.0,1.09832]
[1743670380574,1.09836,1821.1,1821.0,2.54812]
[1743670380778,2.51696,1821.1,1821.0,2.54812]
[1743670385983,3.65322233,1821.2,1821.1,1.09832]
[1743670386175,3.65322233,1821.2,1821.1,4.55677822]
[1743670386370,0.00822233,1821.2,1821.1,4.55677822]
[1743670386976,2.55842,1821.6,1821.5,1.09808]
[1743670387274,2.55842,1821.6,1821.4,1.09811]
[1743670387275,1.09808,1821.5,1821.4,1.09811]
[1743670387576,2.50018,1821.5,1821.4,1.09811]
[1743670387978,2.50018,1821.5,1821.4,1.80295345]
[1743670388377,2.50018,1821.5,1821.4,5.01075345]
[1743670390884,2.50018,1821.5,1821.4,3.91264345]
[1743670391080,2.50018,1821.5,1821.4,5.01078345]
[1743670391275,2.50018,1821.5,1821.4,4.30594]
[1743670392274,2.50018,1821.5,1821.4,5.72564]
[1743670392480,1.09814,1821.4,1821.3,1.09815]
[1743670392676,2.53744,1821.4,1821.3,1.09815]
[1743670393082,2.53744,1821.4,1821.3,3.22231891]
[1743670395485,7.85181233,1821.6,1821.3,2.12416891]
[1743670395681,1.09812,1821.5,1821.4,4.30588]
[1743670395882,2.48902,1821.5,1821.4,5.71288]
[1743670396283,2.48902,1821.5,1821.4,3.91226891]
[1743670396588,2.48902,1821.5,1821.4,3.2078]
[1743670399481,2.48902,1821.5,1821.4,4.30594]
[1743670400693,2.48902,1821.5,1821.4,3.2078]
[1743670401796,6.11902,1821.5,1821.4,4.30594]
[1743670402895,6.11902,1821.5,1821.4,3.2078]
[1743670403080,6.11902,1821.5,1821.4,4.30594]
[1743670403497,1.09808,1821.5,1821.4,4.30594]
[1743670403687,1.09808,1821.5,1821.4,5.01081424]
[1743670403990,1.09808,1821.5,1821.4,3.91267424]
[1743670404190,2.53448,1821.5,1821.4,3.91267424]
[1743670404692,2.53448,1821.5,1821.4,3.2078]
[1743670405283,1.09814,1821.4,1821.3,1.09818]
[1743670405479,1.09814,1821.4,1821.3,4.30598]
[1743670405480,2.53454,1821.4,1821.3,4.30598]
[1743670405692,2.53454,1821.4,1821.3,3.2078]
[1743670405892,2.53454,1821.4,1821.3,4.306]
[1743670406087,2.53454,1821.4,1821.3,5.01124349]
[1743670407184,2.53454,1821.4,1821.3,5.56085412]
[1743670409292,2.53454,1821.4,1821.3,5.56074107]
[1743670409985,2.53454,1821.4,1821.3,5.01124349]
[1743670410990,2.53454,1821.4,1821.3,5.56080635]
[1743670411387,2.53454,1821.4,1821.3,5.5607346]
[1743670411583,2.53454,1821.4,1821.3,7.0327346]
[1743670412091,1.09814,1821.5,1821.4,1.09808]
[1743670412397,1.09814,1821.5,1821.4,3.25948]
[1743670412596,2.51264,1821.5,1821.4,3.25948]
[1743670412788,2.51264,1821.5,1821.4,3.96472349]
[1743670414191,2.51264,1821.5,1821.4,3.27532349]
[1743670414397,2.51264,1821.5,1821.4,0.70524349]
[1743670415200,1.09838,1821.1,1821.0,1.09837]
[1743670415590,1.09838,1821.0,1820.9,45.11443233]
[1743670415795,1.09838,1821.0,1820.9,40.80822233]
[1743670415996,2.60428,1821.0,1820.9,40.80822233]
[1743670422693,5.10428,1821.0,1820.9,2.33e-06]
[1743670422901,11.1649157,1821.0,1820.9,2.33e-06]
[1743670423696,11.06828,1821.0,1820.9,2.33e-06]
[1743670424598,14.69828,1821.0,1820.9,2.33e-06]
[1743670427506,2.60428,1821.0,1820.9,2.33e-06]
[1743670427804,6.23528,1821.0,1820.9,2.33e-06]
[1743670430715,8.73528,1821.0,1820.9,2.33e-06]
[1743670431520,7.6369,1821.0,1820.3,40.8]
[1743670431718,1.0988,1820.3,1820.2,1.4347]
[1743670432023,4.7298,1820.3,1820.2,1.4347]
[1743670432222,4.7298,1820.3,1820.2,42.2347]
[1743670434419,4.7298,1820.3,1820.2,43.33356]
[1743670434620,4.7298,1820.3,1820.2,42.2347]
[1743670434917,4.7298,1820.3,1820.2,43.33356]
[1743670435110,4.7298,1820.3,1820.2,42.2347]
[1743670435315,4.7298,1820.3,1820.2,40.8]
[1743670435512,5.4201,1820.3,1820.2,40.8]
[1743670437124,8.6279,1820.3,1820.2,40.8]
[1743670437822,4.7298,1820.3,1820.2,40.8]
[1743670438123,4.7298,1820.3,1820.2,42.3008]
[1743670440925,4.7308,1820.3,1820.2,42.3008]
[1743670441119,4.7308,1820.3,1820.2,44.14606]
[1743670441722,1.10701233,1820.4,1820.3,1.0988]
[1743670441928,1.10701233,1820.4,1820.3,5.832]
[1743670441929,0.00822233,1820.4,1820.3,5.832]
[1743670442418,1.10696233,1820.4,1820.3,46.632]
[1743670442822,0.00822233,1820.4,1820.3,49.132]
[1743670443018,1.10696233,1820.4,1820.3,49.132]
[1743670443224,0.00822233,1820.4,1820.3,49.132]
[1743670443728,1.10696233,1820.4,1820.3,46.632]
[1743670444725,0.00822233,1820.4,1820.3,47.33609588]
[1743670445028,1.10696233,1820.4,1820.3,47.33609588]
[1743670445329,0.00822233,1820.4,1820.3,47.33609588]
[1743670445529,1.10696233,1820.4,1820.3,47.33609588]
[1743670446225,1.10696233,1820.4,1820.3,43.02949588]
[1743670446729,1.10696233,1820.4,1820.3,46.632]
[1743670447628,1.10696233,1820.4,1820.3,47.3365787]
[1743670448531,1.10696233,1820.4,1820.3,45.5332]
[1743670449038,1.10696233,1820.4,1820.3,3.2078]
[1743670449333,3.95926233,1820.4,1820.3,3.2078]
[1743670449523,3.95926233,1820.4,1820.3,44.0078]
[1743670449728,3.95926233,1820.4,1820.3,45.4453]
[1743670451338,3.95926233,1820.4,1820.3,40.8]
[1743670451339,7.16706233,1820.4,1820.3,40.8]
[1743670451535,3.95926233,1820.4,1820.3,40.8]
[1743670454341,3.22256233,1820.4,1820.3,40.8]
[1743670454540,3.22256233,1820.4,1820.3,41.8988]
[1743670454541,1.10696233,1820.4,1820.3,41.8988]
[1743670455235,1.10696233,1820.4,1820.3,42.5945]
[1743670455944,1.10696233,1820.4,1820.3,43.29969445]
[1743670457843,1.10696233,1820.4,1820.3,42.20089445]
[1743670458038,1.10696233,1820.4,1820.3,43.29969445]
[1743670460535,1.10696233,1820.4,1820.3,46.50749445]
[1743670462641,1.10696233,1820.4,1820.3,44.71299445]
[1743670464845,4.31476233,1820.4,1820.3,41.50519445]
[1743670465051,1.10696233,1820.4,1820.3,41.50519445]
[1743670465547,1.10696233,1820.4,1820.3,40.8]
[1743670467151,1.09886,1820.2,1820.1,0.00822233]
[1743670467342,4.72986,1820.2,1820.1,0.00822233]
[1743670468146,4.72986,1820.2,1820.1,40.80822233]
[1743670468748,7.93766,1820.2,1820.1,40.80822233]
[1743670468949,4.72986,1820.2,1820.1,40.80822233]
[1743670469647,10.43766,1820.2,1820.1,0.00822233]
[1743670469853,10.43766,1820.2,1819.4,8.98591664]
[1743670469854,1.09929,1819.5,1819.4,8.98591664]
[1743670470152,1.09929,1819.5,1819.4,43.98073574]
[1743670470353,1.09929,1819.5,1819.4,46.85249664]
[1743670471047,1.09929,1819.5,1819.4,41.5052609]
[1743670471246,1.84589,1819.5,1819.4,41.5052609]
[1743670473453,1.84589,1819.5,1819.4,40.8]
[1743670479259,1.84589,1819.5,1819.4,42.2226]
[1743670479750,3.29569,1819.5,1819.4,42.2226]
[1743670481560,1.09929,1819.5,1819.4,40.8]
[1743670481860,3.26699,1819.5,1819.4,40.8]
[1743670482356,2.54909,1819.5,1819.4,40.8]
[1743670482548,2.54909,1819.5,1819.4,44.12135]
[1743670483262,2.54909,1819.5,1819.4,43.022]
[1743670484758,4.73129,1819.5,1819.4,47.32915]